Cogmind - Beta 15 @@@ ROGUE MODE // 2025.06.13 @ 07:19:37 Player: CL-1C0 Result: Destroyed by S-27 Virus with Autogun Performance ------------- Evolutions (6) 3000 Regions Visited (17) 3400 Robots Destroyed (214) 1070 Value Destroyed (9524) 9524 Prototype IDs (47) 940 Alien Tech Used (0) 0 Bonus (6120) 6120 TOTAL SCORE: 24054 Bonus ------- High Alert Combat Kills 315 Follower Combat Kills 1194 Network Hubs Disabled 200 Registered with UFD 300 Met Optimus in HQ 500 Met Warlord at Base 500 MAIN.C Attacked Warlord 500 Warlord Defense Kills 5166 Friendly Fire -2555 Cogmind --------- Core Integrity 0/1150 Matter 30/300 Energy 74/100 System Corruption 7% Temperature Cool (0) Movement Core (150) Ox2 Location -4/Factory Parts ------- > --- POWER (2) -------- (None) > --- PROPULSION (6) --- (None) > --- UTILITY (9) ------ Improved Target Analyzer Graphene Brace > --- WEAPON (2) ------- Vibroblade Vibroblade > --- INVENTORY (5) ---- Cooled Antigrav System Advanced Weapon Cycler Graphene Brace Vortex Rifle (24) Vibroblade Peak State ------------ > --- POWER ------------ Vortex Chain Reactor > --- PROPULSION ------- Myomer Leg Myomer Leg Myomer Leg Myomer Leg Myomer Leg Myomer Leg > --- UTILITY ---------- Huge Storage Unit Experimental Targeting Computer Improved Target Analyzer Hardened Heavy Armor Plating Powered Armor Graphene Brace Graphene Brace > --- WEAPON ----------- Helical Railgun Precision Rocket Launcher > --- INVENTORY -------- Cooled Antigrav System Cooled Antigrav System Advanced Sensor Array Advanced Weapon Cycler Advanced Transmission Jammer Experimental Reaction Control System Experimental Focal Shield Advanced Hacking Suite Vortex Rifle Vortex Rifle Cooled Plasma Cannon Hypervelocity Coil Gun Hypervelocity Coil Gun Helical Railgun Compact Linear Accelerator Advanced Datajack RU-N14's Throwing Claymores v3 Phasing Sabre Plasma Lance Vortex Trap [Rating: 129] Favorites ----------- Power Quantum Reactor Engine Subdweller Power Source Power Core Neutrino Core Reactor Quantum Reactor Propulsion Armored Treads Treads Armored Treads Leg Makeshift Leg Wheel Compact Wheel Hover Unit Antigrav Array Utility Structural Scanner Device Structural Scanner Storage Huge Storage Unit Processor Improved Target Analyzer Hackware Improved Hacking Suite Protection Layered Light Armor Plating Weapon Medium Laser Energy Gun Medium Laser Energy Cannon Cooled Plasma Cannon Ballistic Gun Helical Railgun Ballistic Cannon Compact Linear Accelerator Launcher Precision Rocket Launcher Special Weapon CPS Tube Impact Weapon Great Maul Slashing Weapon Vibroblade Piercing Weapon Plasma Lance Build | -11 -10 -10 -9 -9 -6 -6 -6 -6 -6 -5 -5 -5 -5 -4 -4 -4 -4 ------- Run | Yrd Mat Sub Rec Scr Fac Ext Cet Arc Hub Fac Upp Upp War Pro Fac Was Fac Slots Evolved 12 | . . . . . 8 . . . . 2 . . . . 2 . . Power 1 | . . . . . . . . . . 1 . . . . . . . Propulsion 4 | . . . . . 2 . . . . 1 . . . . 1 . . Utility 7 | . . . . . 6 . . . . . . . . . 1 . . Weapon . | . . . . . . . . . . . . . . . . . . Parts Attached 144 | 1 7 13 . 22 8 5 4 7 16 12 1 2 17 8 17 1 3 Power 17 | . 1 2 . 4 . . 1 1 2 . . . 3 . 3 . . Engine 5 | . 1 2 . 1 . . 1 . . . . . . . . . . Core 4 | . . . . 1 . . . 1 . . . . 1 . 1 . . Reactor 8 | . . . . 2 . . . . 2 . . . 2 . 2 . . Propulsion 32 | 1 1 5 . 4 1 . . 3 2 2 . 1 1 . 9 1 1 Treads 11 | 1 1 . . 1 . . . 3 2 2 . 1 . . . . . Leg 7 | . . 1 . . . . . . . . . . . . 6 . . Wheel 11 | . . 4 . 3 1 . . . . . . . . . 3 . . Hover 3 | . . . . . . . . . . . . . 1 . . 1 1 Flight . | . . . . . . . . . . . . . . . . . . Utility 56 | . 2 3 . 6 7 5 3 1 7 9 1 1 5 2 4 . . Device 23 | . . 1 . 4 1 3 . 1 2 5 1 1 2 1 1 . . Storage 2 | . . 1 . . . 1 . . . . . . . . . . . Processor 11 | . 2 . . 1 3 . . . 2 1 . . 2 . . . . Hackware 7 | . . . . . 3 . . . 1 2 . . . . 1 . . Protection 13 | . . 1 . 1 . 1 3 . 2 1 . . 1 1 2 . . Artifact . | . . . . . . . . . . . . . . . . . . Weapon 39 | . 3 3 . 8 . . . 2 5 1 . . 8 6 1 . 2 Energy Gun 6 | . 1 2 . . . . . . 2 . . . . 1 . . . Energy Cannon 3 | . . 1 . 1 . . . . 1 . . . . . . . . Ballistic Gun 11 | . 1 . . 2 . . . 1 2 . . . 2 3 . . . Ballistic Cannon 1 | . . . . . . . . . . . . . . 1 . . . Launcher 2 | . 1 . . . . . . . . 1 . . . . . . . Special Weapon 10 | . . . . 3 . . . . . . . . 6 . 1 . . Impact Weapon 1 | . . . . 1 . . . . . . . . . . . . . Slashing Weapon 4 | . . . . 1 . . . 1 . . . . . . . . 2 Piercing Weapon 1 | . . . . . . . . . . . . . . 1 . . . Special Melee Weapon . | . . . . . . . . . . . . . . . . . . Unidentified Prototypes 24 | . . . . 3 1 . 1 2 2 1 . . 7 5 1 . 1 Corrupted Parts 4 | . . . . . . . . . 4 . . . . . . . . System Corruption 16 | . . . . . . . . . 16 . . . . . . . . Parts Lost 45 | . . 6 . 1 1 1 1 1 10 4 . . 3 1 14 . 2 Power 5 | . . 1 . . . 1 1 . 1 . . . 1 . . . . Propulsion 17 | . . 2 . 1 . . . . 2 1 . . 1 1 7 . 2 Utility 14 | . . . . . 1 . . . 5 2 . . 1 . 5 . . Weapon 9 | . . 3 . . . . . 1 2 1 . . . . 2 . . Highest Loss Streak 11 | . . 4 . 1 1 1 1 1 4 3 . . 1 1 11 . 2 To Critical Strikes 1 | . . . . . . . 1 . . . . . . . . . . Average Backups 16 | 4 3 8 16 14 10 17 17 19 19 20 23 24 23 23 21 4 4 Power 1 | 1 . 2 2 . . . . 2 2 1 2 2 1 1 . . . Propulsion 2 | 2 . 1 4 2 1 1 2 . . 1 5 4 3 2 2 2 1 Utility 7 | . 2 3 4 5 5 11 9 6 8 11 10 10 8 8 7 2 2 Weapon 5 | 1 . 1 5 4 2 4 4 8 6 5 4 5 8 11 10 . 1 Tool/Special . | . . . . . . . . . . . . . . . . . . Unused Backups 44 | . . . . 20 . . 4 2 . 2 1 1 6 . 7 . 1 Power 1 | . . . . 1 . . . . . . . . . . . . . Propulsion 6 | . . . . 1 . . . . . . . . 4 . 1 . . Utility 19 | . . . . 10 . . 4 1 . . 1 . . . 3 . . Weapon 16 | . . . . 7 . . . 1 . 2 . 1 2 . 2 . 1 Tool/Special 2 | . . . . 1 . . . . . . . . . . 1 . . Average Slot Usage (%) 84 | . 78 87 100 92 71 74 72 85 76 82 88 88 89 76 74 17 29 Engine 5 | . 10 13 14 10 . . 4 1 . . . . . . . . . Reactor 4 | . . . . 2 12 9 1 . . 9 11 11 9 5 6 . . Treads 12 | . 22 16 14 5 . . . 15 11 21 23 23 22 11 7 . . Wheel 6 | . . 2 14 20 5 6 6 1 . . . . . . 3 . . Device 14 | . . 13 14 8 9 15 20 20 15 15 23 23 21 23 18 5 5 Storage 8 | . . 13 14 11 6 6 6 6 6 5 5 5 5 5 4 . . Processor 4 | . 20 . . . 16 15 13 13 10 1 . . 7 11 9 5 5 Hackware 3 | . . . . . 12 9 . . . 10 11 11 4 . 4 . . Protection 4 | . . . . 4 . 2 11 13 11 4 5 5 4 4 5 . . Energy Gun 6 | . 13 19 14 10 . . . . 2 . . . . . . 2 . Energy Cannon 5 | . . . 14 11 6 6 6 2 2 4 5 5 3 1 2 . . Ballistic Gun 2 | . 10 2 . 1 . . . 4 8 2 . . 2 6 4 . . Peak Build Rating 129 | 1 7 15 15 63 106 107 101 111 113 109 102 97 126 119 129 39 57 Average Rating 62 | 1 5 10 14 21 102 100 91 104 98 95 96 96 107 112 115 36 54 On Entrance 65 | 6 1 7 14 15 63 106 93 101 111 97 99 96 97 113 108 16 39 Naked Turns . | . . . . . . . . . . . . . . . . . . Heaviest Build 162 | . 5 56 56 80 81 133 129 130 154 158 136 136 153 124 162 9 13 Greatest Support 150 | 3 40 40 20 32 35 35 35 133 133 140 140 147 147 127 150 26 39 Greatest Overweight (x) 26 | . 1 2 2 26 2 3 3 3 1 1 . . 1 1 4 . 2 Average Overweight (x) 1 | . . 1 2 1 2 2 3 . . . . . . . 1 . . Largest Inventory Capacity 25 | 5 5 20 20 20 20 25 25 25 25 25 25 25 25 25 25 5 5 Average Capacity 21 | 5 5 19 20 17 20 24 25 25 25 25 25 25 25 25 24 5 5 Most Carried 25 | 4 4 16 20 20 20 25 25 25 25 25 25 25 25 25 25 5 5 Average Carried 18 | 2 3 9 18 16 16 23 23 23 22 21 24 24 24 25 23 4 4 Final Capacity 25 | 5 5 20 20 20 20 25 25 25 25 25 25 25 25 25 5 5 5 Final Carried 25 | . 4 16 20 20 20 25 24 25 19 25 25 25 25 25 5 4 5 Class Distribution -------------------- 54% | Scavenger-Mutant 44% | Mutant Dominant Class ---------------- Mutant | -10/Materials Mutant | -10/Subcaves Mutant | -9/Recycling Mutant | -9/Scraptown Scavenger-Mutant | -6/Factory Scavenger-Mutant | -6/Extension Mutant | -6/Cetus Scavenger-Mutant | -6/Archives Scavenger-Mutant | -6/Hub_04(d) Scavenger-Mutant | -5/Factory Scavenger-Mutant | -5/Upper Caves Scavenger-Mutant | -5/Upper Caves Scavenger-Mutant | -5/Warlord Scavenger-Mutant | -4/Proximity Caves Scavenger-Mutant | -4/Factory Mutant | -4/Waste Mutant | -4/Factory Resources | -11 -10 -10 -9 -9 -6 -6 -6 -6 -6 -5 -5 -5 -5 -4 -4 -4 -4 ----------- Run | Yrd Mat Sub Rec Scr Fac Ext Cet Arc Hub Fac Upp Upp War Pro Fac Was Fac Matter Collected 5106 | 200 157 263 20 1645 90 56 35 194 669 384 75 10 465 340 483 . 20 Remotely . | . . . . . . . . . . . . . . . . . . Salvage Created 7851 | . 198 308 392 394 215 941 233 564 1328 906 . 77 863 291 1069 . 72 Parts 341 | . 13 17 12 5 7 46 6 36 56 43 . . 27 16 49 . 8 Haulers Intercepted 3 | . 1 . . . 1 . . . . 1 . . . . . . . Recyclers Shooed 8 | . 1 . 2 . . 1 . . 1 . . . . . 3 . . Parts Field Recycled . | . . . . . . . . . . . . . . . . . . Retrieved Matter . | . . . . . . . . . . . . . . . . . . Parts Self-Destructed 23 | . . 13 . . . . . . . . . . . 10 . . . Prevented . | . . . . . . . . . . . . . . . . . . Kills | -11 -10 -10 -9 -9 -6 -6 -6 -6 -6 -5 -5 -5 -5 -4 -4 -4 -4 ------- Run | Yrd Mat Sub Rec Scr Fac Ext Cet Arc Hub Fac Upp Upp War Pro Fac Was Fac Combat Hostiles Destroyed 166 | . 10 6 3 7 3 8 2 4 23 23 . 1 43 9 21 . 3 Melee 7 | . . . . 1 . . . 1 2 . . . . . . . 3 Guns 40 | . 2 5 1 2 . . . . 16 3 . . 5 2 4 . . Cannons 32 | . . . 2 3 3 6 1 3 5 5 . 1 2 1 . . . AOE 83 | . 8 1 . . . . . . . 15 . . 36 6 17 . . Classes Destroyed 29 | . 3 1 4 4 1 4 . . 3 1 . 1 7 . . . . Worker 10 | . . . . . . 1 . . 1 2 . . . . 6 . . Builder 8 | . . . 1 . . 4 . . . 1 . . . . 2 . . Tunneler 2 | . . . . . 2 . . . . . . . . . . . . Hauler 3 | . 1 . . . 1 . . . . 1 . . . . . . . Recycler 9 | . . . 3 . . 2 . . 1 . . . . . 3 . . Mechanic 2 | . . . . . . . . . . . . . 1 . 1 . . Operator 10 | . . . . . . 1 . 8 . 1 . . . . . . . Watcher 2 | . . . . . . . . . . 1 . . . . 1 . . Swarmer 37 | . 6 . . . 3 . . . 5 8 . . 4 4 4 . 3 Saboteur 2 | . . . . . . . . . . . . . 1 . 1 . . Grunt 62 | . 4 2 . . . 4 . . 10 10 . . 22 2 8 . . Brawler 2 | . . . . . . . . . . . . . 2 . . . . Duelist 2 | . . . . . . . . . . . . . 1 1 . . . Protector 3 | . . . 1 . . . . . . . . . 1 . 1 . . Sentry 10 | . . . 2 . . 2 . 4 1 1 . . . . . . . Demolisher 1 | . . . . . . . . . . . . . 1 . . . . Specialist 5 | . . . . . . . . . 2 . . . 2 . 1 . . Hunter 12 | . . . . . . 1 . . 1 . . . 5 2 3 . . Programmer 7 | . . . . . . . . . 1 4 . . . . 2 . . Heavy 3 | . . . . . . . . . 3 . . . . . . . . Behemoth 2 | . . . . . . 1 . . . . . . . . 1 . . Cetus Guard 2 | . . . . . . . 2 . . . . . . . . . . Striker 1 | . . . . . . . . . . . . . 1 . . . . Executioner 3 | . . . . . . . . . . . . . 3 . . . . Subdweller 4 | . . 4 . . . . . . . . . . . . . . . Federalist 1 | . . . . 1 . . . . . . . . . . . . . Ranger 1 | . . . . 1 . . . . . . . . . . . . . Guru 2 | . . . . 2 . . . . . . . . . . . . . Scrapper 3 | . . . . 3 . . . . . . . . . . . . . Decomposer 2 | . . . . . . . . . . . . . . 2 . . . Mutant 2 | . . . . . . . . . . . . 1 1 . . . . Best Kill Streak 20 | . 5 2 3 3 3 4 1 6 10 8 . 1 20 4 12 . 3 Combat Bots Only 20 | . 5 2 1 3 3 3 1 1 8 8 . 1 20 4 6 . 3 Max Kills in Single Turn 6 | . 2 1 1 1 1 1 1 1 2 4 . 1 6 3 4 . 1 Gunslinging 1 | . . . . . . . . . 1 . . . 1 . . . . Exploded 5 | . 2 1 . . . . . . . 4 . . 5 3 3 . . Melee 1 | . . . . 1 . . . 1 1 . . . . . . . 1 Uniques/NPCs Destroyed 1 | . . . . . . . 1 . . . . . . . . . . A7 (-6/Cetus) Combat | -11 -10 -10 -9 -9 -6 -6 -6 -6 -6 -5 -5 -5 -5 -4 -4 -4 -4 -------- Run | Yrd Mat Sub Rec Scr Fac Ext Cet Arc Hub Fac Upp Upp War Pro Fac Was Fac Hostile Shots Fired 986 | . 19 34 4 9 14 44 18 25 284 134 . 30 61 53 218 1 38 Missed 285 | . 8 11 1 2 5 22 6 5 57 43 . 8 13 16 79 . 9 Hits 701 | . 11 23 3 7 9 22 12 20 227 91 . 22 48 37 139 1 29 Melee 15 | . . . . . . . . . . . . . 4 5 5 1 . Projectile 686 | . 11 23 3 7 9 22 12 20 227 91 . 22 44 32 134 . 29 AOE 8 | . . . . . . . . . . . . . 4 . 4 . . Critical Strikes 26 | . . . . . . 1 5 1 6 1 . 1 4 . 5 1 1 Actively Blocked 19 | . . . . . . 1 . . 5 1 . 1 4 . 5 1 1 Part Disruptions 2 | . . . . . . . . . . . . . . . 2 . . Damage Taken 14089 | . 217 483 46 175 121 243 239 417 3582 1974 . 172 1495 704 3748 41 432 Core 2039 | . 54 66 15 43 . 15 61 97 244 65 . 31 115 80 953 41 159 Absorbed by Shields 548 | . . . . . . 208 103 36 201 . . . . . . . . Reduced by Siege Mode 74 | . . . . . . . . . 74 . . . . . . . . Ignored by Resistances 640 | . . . . . . . . . 194 . . . 168 116 162 . . Regen/Repaired (Parts) 204 | . . . . . . . . . . . . . 204 . . . . Core Remaining (%) 62 | 100 . . . 28 . . . . 50 . . . . 70 . . . Volleys Fired 595 | . 21 64 20 24 29 63 31 46 79 68 7 13 42 24 53 11 . Largest 2 | . 2 2 2 2 1 1 1 2 2 2 1 1 2 2 2 1 . Hottest 130 | . 60 110 130 76 40 40 120 73 115 73 35 35 105 76 76 40 . Shots Fired 788 | . 27 88 22 34 29 63 31 68 139 90 7 13 58 31 77 11 . Gun 415 | . 18 82 2 20 . . . 45 117 21 . . 36 15 48 11 . Cannon 297 | . . 1 20 9 29 63 31 23 22 59 7 13 1 8 11 . . Launcher 51 | . 9 5 . . . . . . . 10 . . 4 8 15 . . Special 25 | . . . . 5 . . . . . . . . 17 . 3 . . Kinetic 311 | . 12 18 . 20 . . . 45 96 21 . . 36 15 48 . . Thermal 390 | . 6 65 22 9 29 63 31 23 43 59 7 13 1 8 11 . . Explosive 69 | . 9 5 . . . . . . . 10 . . 19 8 18 . . Electromagnetic . | . . . . . . . . . . . . . . . . . . Entropic 11 | . . . . . . . . . . . . . . . . 11 . Robot Hit Streak 26 | . 6 26 5 6 5 6 3 12 17 9 . 16 13 5 15 . . Robot Miss Streak 5 | . 3 2 3 2 1 5 3 2 3 4 . . 3 2 3 . . Penetration Max 2 | . . . . . . . . . 2 1 . . 1 1 . . . Secondary Targets 6 | . . . . . . . . . 5 . . . 1 . . . . Max Gunslinging Chain 1 | . . . . . . . . . 1 . . . 1 . . . . Shots Hit Robots 494 | . 16 52 13 16 11 35 16 56 96 56 . 11 44 20 47 . 5 Core Hits 381 | . 18 22 7 6 5 14 5 22 44 47 . 3 82 19 84 . 3 Critical Kills 18 | . . . 1 1 . 3 2 3 1 2 . . 4 1 . . . Critical Parts Destroyed 18 | . . . . 1 . . . 2 5 2 . . 6 . 2 . . Critical Strikes 45 | . . 2 1 2 . 3 2 5 6 4 . . 16 1 3 . . Burn 2 | . . 2 . . . . . . . . . . . . . . . Meltdown 8 | . . . 1 1 . 3 2 1 . . . . . . . . . Destroy 31 | . . . . . . . . 4 6 4 . . 14 1 2 . . Smash 1 | . . . . 1 . . . . . . . . . . . . . Sever 3 | . . . . . . . . . . . . . 2 . 1 . . Melee Attacks 36 | . . . . 18 . . . 5 . . . . . . . . 13 Impact 18 | . . . . 18 . . . . . . . . . . . . . Slashing 18 | . . . . . . . . 5 . . . . . . . . 13 Piercing . | . . . . . . . . . . . . . . . . . . Sneak Attacks 3 | . . . . . . . . 3 . . . . . . . . . Combat Hostiles . | . . . . . . . . . . . . . . . . . . Follow-up Attacks 2 | . . . . . . . . . . . . . . . . . 2 Damage Inflicted 33727 | . 672 891 314 479 534 1933 996 2156 2985 3996 . 352 9703 1415 7028 . 273 Guns 6276 | . 107 540 24 162 . . . 891 2514 520 . . 227 326 965 . . Cannons 7069 | . . . 290 271 534 1933 996 961 424 1055 . 352 . 127 126 . . Explosions 18986 | . 565 351 . . . . . . . 2335 . . 8976 962 5797 . . Melee 623 | . . . . 46 . . . 304 . . . . . . . . 273 Ramming 146 | . . . . . . . . . 47 86 . . . . 13 . . Kinetic 5281 | . 64 118 . 162 . . . 891 2008 520 . . 227 326 965 . . Thermal 8882 | . 43 422 314 271 534 1933 996 961 930 1845 . 352 . 127 154 . . Explosive 18168 | . 565 351 . . . . . . . 1545 . . 8976 962 5769 . . Electromagnetic . | . . . . . . . . . . . . . . . . . . Impact 46 | . . . . 46 . . . . . . . . . . . . . Slashing 1204 | . . . . . . . . 304 . . . . 500 . 127 . 273 Piercing . | . . . . . . . . . . . . . . . . . . Highest Corruption 16 | . . . . . . . . . 16 4 . 2 1 1 3 7 7 Average Corruption 2 | . . . . . . . . . 6 1 . 1 1 1 1 6 7 Corruption Purged 9 | . . . . . . . . . . 4 . 1 1 . 3 . . Corruption Blocked . | . . . . . . . . . . . . . . . . . . Effects 17 | . . . . . . . . . 3 1 . . 1 5 1 2 4 Message Errors 6 | . . . . . . . . . 1 . . . . 2 . 2 1 Matter Fused 3 | . . . . . . . . . 1 . . . . . 1 . 1 Heat Flow Errors 1 | . . . . . . . . . . . . . . 1 . . . Energy Discharges 4 | . . . . . . . . . . . . . 1 1 . . 2 Data Loss (minor) 1 | . . . . . . . . . 1 . . . . . . . . Misfires 1 | . . . . . . . . . . 1 . . . . . . . Alerts 1 | . . . . . . . . . . . . . . 1 . . . Overload Shots 3 | . . . . . . . 2 . . . . . 1 . . . . Overflow Damage 1285 | . 8 6 . 46 55 131 . 63 . 191 . 32 398 42 313 . . Projectiles 312 | . . . . . 55 131 . . . 38 . 32 33 . 23 . . Explosions 864 | . 8 6 . . . . . . . 153 . . 365 42 290 . . Melee 109 | . . . . 46 . . . 63 . . . . . . . . . Knockbacks 1 | . . . . . . . . . . . . . . . 1 . . Impact 1 | . . . . . . . . . . . . . . . 1 . . Kinetic . | . . . . . . . . . . . . . . . . . . Secondary . | . . . . . . . . . . . . . . . . . . Self-Inflicted Damage 445 | . 103 52 . . . . . . . 290 . . . . . . . Shots 13 | . 6 3 . . . . . . . 4 . . . . . . . Rammed 14 | . . . . . . . . . 4 8 . . . . 2 . . Targets Rammed 16 | . . . . . . . . . 6 8 . . . . 2 . . Kicked . | . . . . . . . . . . . . . . . . . . Crushed 2 | . . . . . . . . . 2 . . . . . . . . Highest Temperature 369 | . 58 . 260 102 90 219 146 39 369 168 . . 283 250 170 . . Average Temperature 70 | . 19 . 85 40 34 88 24 18 116 59 . . 130 85 35 . . Received Heat Transfer 2002 | . 42 132 18 84 . 49 9 37 725 324 . 36 216 57 273 . . Effects 3 | . . . . . . . . . 3 . . . . . . . . Interference 3 | . . . . . . . . . 3 . . . . . . . . Siege Activations 2 | . . . . . . . . . 2 . . . . . . . . Total Turns 73 | . . . . . . . . . 73 . . . . . . . . Longest Duration 42 | . . . . . . . . . 42 . . . . . . . . Martial Activations . | . . . . . . . . . . . . . . . . . . Shielding Activations . | . . . . . . . . . . . . . . . . . . Robots Disrupted . | . . . . . . . . . . . . . . . . . . Combat Hostiles . | . . . . . . . . . . . . . . . . . . Robots Corrupted . | . . . . . . . . . . . . . . . . . . Combat Hostiles . | . . . . . . . . . . . . . . . . . . Parts Fried 1 | . . . . 1 . . . . . . . . . . . . . Impact Corruptions 2 | . . . . 2 . . . . . . . . . . . . . Robots Melted 8 | . . . 1 1 . 3 2 1 . . . . . . . . . Combat Hostiles 4 | . . . . 1 . 2 1 . . . . . . . . . . Parts Melted 30 | . . 2 5 4 . 3 6 4 3 2 . 1 . . . . . Heat Transferred 6071 | . 100 1129 463 . . . . . 1279 2100 . 550 . 200 250 . . Parts Sabotaged . | . . . . . . . . . . . . . . . . . . Parts Stolen . | . . . . . . . . . . . . . . . . . . Parts Stripped . | . . . . . . . . . . . . . . . . . . Power Chain Reactions . | . . . . . . . . . . . . . . . . . . Alert | -11 -10 -10 -9 -9 -6 -6 -6 -6 -6 -5 -5 -5 -5 -4 -4 -4 -4 ------- Run | Yrd Mat Sub Rec Scr Fac Ext Cet Arc Hub Fac Upp Upp War Pro Fac Was Fac Maximum Alert Level 2 | . 1 . . . . 2 1 . 2 2 . . . . 2 . . Low Security (%) 57 | 100 56 . 100 . 100 61 . 100 35 22 . . . . 70 100 100 Level 1 32 | . 43 . . . . 13 100 . 33 69 . . . . 13 . . Level 2 10 | . . . . . . 24 . . 30 8 . . . . 15 . . Level 3 . | . . . . . . . . . . . . . . . . . . Level 4 . | . . . . . . . . . . . . . . . . . . Level 5 . | . . . . . . . . . . . . . . . . . . High Security . | . . . . . . . . . . . . . . . . . . Max Security . | . . . . . . . . . . . . . . . . . . Peak Influence 654 | . 244 . 55 . 70 536 337 129 467 579 . . . . 654 189 112 Initial 286 | . . . . . . 22 286 93 17 217 . . . . . 189 102 Average 175 | . 163 . 9 . 38 191 283 91 243 277 . . . . 139 171 92 Influence Increases 5768 | . 331 50 134 . 135 846 128 174 751 1186 . . 865 210 860 8 90 Destroy 0b10 Robot/C 3320 | . 200 40 40 . 60 420 80 80 460 460 . . 840 180 400 . 60 Destroy 0b10 Robot/NC 255 | . 5 . 25 . 15 45 5 40 10 30 . . 10 . 70 . . Destroy Leader 392 | . 42 10 . . 12 52 . . 130 64 . . . 30 52 . . Allied During Kill 283 | . . . . . . 250 33 . . . . . . . . . . Successful Hack 156 | . . . . . 29 24 . . . 103 . . . . . . . Select Force Hacks 110 | . . . 60 . . . . . 50 . . . . . . . . Disable Machine 465 | . . . . . . 30 . 45 45 165 . . . . 180 . . Destroy Structure 697 | . 54 . 9 . 19 25 10 9 41 364 . . . . 158 8 . Lose Combat Pursuer 90 | . 30 . . . . . . . 15 . . . 15 . . . 30 Influence Decreases 5676 | . 194 187 129 5 89 380 406 357 359 1230 399 . 120 955 318 403 145 Entered New Map 2013 | . . 66 . 5 . 24 226 141 34 226 148 . . 745 . 353 45 Time Decay 2664 | . 194 111 129 . 80 246 110 206 225 514 251 . 90 200 178 50 80 Lost Part 389 | . . 10 . . 9 10 10 10 100 40 . . 30 10 140 . 20 Lost Ally 160 | . . . . . . 100 60 . . . . . . . . . . Purge Threat 450 | . . . . . . . . . . 450 . . . . . . . Squads Dispatched 22 | . 1 . . . 1 3 . . 7 5 . . . . 5 . . Investigation 6 | . . . . . 1 2 . . 1 1 . . . . 1 . . Extermination 3 | . . . . . . . . . . 2 . . . . 1 . . Reinforcement 10 | . 1 . . . . 1 . . 3 2 . . . . 3 . . Assault . | . . . . . . . . . . . . . . . . . . Garrison 3 | . . . . . . . . . 3 . . . . . . . . Intercept . | . . . . . . . . . . . . . . . . . . Searches Triggered . | . . . . . . . . . . . . . . . . . . Construction Impeded 5 | . . . . . . 1 . . 1 1 . . . . 2 . . Haulers Reinforced 1 | . . . . . . . . . . 1 . . . . . . . Active Scanning Responses . | . . . . . . . . . . . . . . . . . . Cargo Convoy Interrupts 2 | . . . . . . . . . . 1 . . . . 1 . . Stealth | -11 -10 -10 -9 -9 -6 -6 -6 -6 -6 -5 -5 -5 -5 -4 -4 -4 -4 --------- Run | Yrd Mat Sub Rec Scr Fac Ext Cet Arc Hub Fac Upp Upp War Pro Fac Was Fac Distress Signals 8 | . 1 . . . . 1 1 . . 1 . . 2 . 2 . . Communications Jammed 11 | . . . . . . . . . 11 . . . . . . . . Distress Signals 1 | . . . . . . . . . 1 . . . . . . . . Times Spotted 268 | . 15 6 3 22 4 21 5 16 23 38 . 1 56 9 37 6 6 Peak Tracking Total 17 | . 4 2 1 3 3 5 5 1 5 6 . 1 17 4 11 6 5 Tactical Retreats 4 | . 1 . . . . . . . 1 . . . 1 . . . 1 Traps | -11 -10 -10 -9 -9 -6 -6 -6 -6 -6 -5 -5 -5 -5 -4 -4 -4 -4 ------- Run | Yrd Mat Sub Rec Scr Fac Ext Cet Arc Hub Fac Upp Upp War Pro Fac Was Fac Traps Triggered 4 | . 1 . . . . . . . . . . . . . 3 . . Indirectly . | . . . . . . . . . . . . . . . . . . Trap Hack Attempts . | . . . . . . . . . . . . . . . . . . Triggered . | . . . . . . . . . . . . . . . . . . Disarmed . | . . . . . . . . . . . . . . . . . . Reprogrammed . | . . . . . . . . . . . . . . . . . . Reused . | . . . . . . . . . . . . . . . . . . Traps Extracted . | . . . . . . . . . . . . . . . . . . Installed 1 | . . . . . . . . . . . . . . . 1 . . Triggered . | . . . . . . . . . . . . . . . . . . Most Traps Carried 1 | . . . . 1 1 1 1 1 1 1 1 1 1 1 1 . . Machines | -11 -10 -10 -9 -9 -6 -6 -6 -6 -6 -5 -5 -5 -5 -4 -4 -4 -4 ---------- Run | Yrd Mat Sub Rec Scr Fac Ext Cet Arc Hub Fac Upp Upp War Pro Fac Was Fac Machines Disabled 52 | . . 1 . 19 . 2 . 3 3 11 . . 1 . 12 . . Max in Single Turn 6 | . . 1 . 3 . 1 . 1 1 2 . . 1 . 6 . . Garrison Access 1 | . . . . . . . . . . 1 . . . . . . . Network Hub 1 | . . . . . . . . . 1 . . . . . . . . Machines Repaired . | . . . . . . . . . . . . . . . . . . Machines Dismantled . | . . . . . . . . . . . . . . . . . . Machines Sabotaged 1 | . . . . . . . . . 1 . . . . . . . . Overloaded Fab Kills . | . . . . . . . . . . . . . . . . . . Hacking | -11 -10 -10 -9 -9 -6 -6 -6 -6 -6 -5 -5 -5 -5 -4 -4 -4 -4 --------- Run | Yrd Mat Sub Rec Scr Fac Ext Cet Arc Hub Fac Upp Upp War Pro Fac Was Fac Machines Accessed 30 | . 2 1 3 2 3 6 . . 1 8 . . 2 . 2 . . Terminals 18 | . 2 . 1 . 2 6 . . 1 5 . . . . 1 . . Fabricators 3 | . . . . . 1 . . . . 1 . . . . 1 . . Repair Stations . | . . . . . . . . . . . . . . . . . . Recycling Units 2 | . . . 2 . . . . . . . . . . . . . . Scanalyzers 1 | . . . . . . . . . . 1 . . . . . . . Garrison Access 1 | . . . . . . . . . . 1 . . . . . . . Total Hacks 142 | . 3 9 7 4 10 10 . . 1 87 . . 3 . 8 . . Successful 109 | . 2 9 4 4 7 4 . . 1 70 . . 3 . 5 . . Failed 33 | . 1 . 3 . 3 6 . . . 17 . . . . 3 . . Catastrophic 2 | . . . . . . 1 . . . 1 . . . . . . . Database Lockouts . | . . . . . . . . . . . . . . . . . . Manual 51 | . . . 3 . 9 2 . . 1 30 . . . . 6 . . Terminals 67 | . 3 . 1 . 9 10 . . 1 37 . . . . 6 . . Fabricators 5 | . . . . . 1 . . . . 2 . . . . 2 . . Repair Stations . | . . . . . . . . . . . . . . . . . . Recycling Units 6 | . . . 6 . . . . . . . . . . . . . . Scanalyzers 47 | . . . . . . . . . . 47 . . . . . . . Garrison Access 1 | . . . . . . . . . . 1 . . . . . . . Terminal Hacks 41 | . 2 9 . 4 4 4 . . . 14 . . 3 . 1 . . Record 13 | . . 8 . 3 . . . . . . . . 2 . . . . Open Door 4 | . . . . . . 3 . . . . . . 1 . . . . Level Access Points 2 | . . . . . 1 . . . . 1 . . . . . . . Branch Access Points 2 | . . . . . 1 . . . . 1 . . . . . . . Machine Index 1 | . . . . . . . . . . 1 . . . . . . . Terminal Index 4 | . . . . . 1 1 . . . 1 . . . . 1 . . Scanalyzer Index 1 | . . . . . . . . . . 1 . . . . . . . Garrison Index 1 | . . . . . . . . . . 1 . . . . . . . Alert Level 1 | . . . . . . . . . . 1 . . . . . . . Unreport Threat 3 | . . . . . . . . . . 3 . . . . . . . Investigation Status 1 | . . . . . . . . . . 1 . . . . . . . Extermination Status 1 | . . . . . . . . . . 1 . . . . . . . Reinforcement Status 1 | . . . . . . . . . . 1 . . . . . . . Recall Investigation 1 | . . . . . . . . . . 1 . . . . . . . Zone Layout 3 | . 2 . . . 1 . . . . . . . . . . . . Proto ID Catalog 2 | . . 1 . 1 . . . . . . . . . . . . . Fabricator Hacks 4 | . . . . . . . . . . 2 . . . . 2 . . Load Schematic 2 | . . . . . . . . . . 1 . . . . 1 . . Build 2 | . . . . . . . . . . 1 . . . . 1 . . Repair Station Hacks . | . . . . . . . . . . . . . . . . . . Recycling Unit Hacks 1 | . . . 1 . . . . . . . . . . . . . . Retrieve Components 1 | . . . 1 . . . . . . . . . . . . . . Scanalyzer 46 | . . . . . . . . . . 46 . . . . . . . Insert Component 20 | . . . . . . . . . . 20 . . . . . . . Analyze 26 | . . . . . . . . . . 26 . . . . . . . Garrison Access Hacks 1 | . . . . . . . . . . 1 . . . . . . . Seal Access 1 | . . . . . . . . . . 1 . . . . . . . Unauthorized Hacks 16 | . . . 3 . 3 . . . 1 7 . . . . 2 . . Terminals 12 | . . . 1 . 2 . . . 1 6 . . . . 2 . . Track 1 | . . . . . . . . . . 1 . . . . . . . Botnet 4 | . . . . . 1 . . . . 2 . . . . 1 . . Disrupt 1 | . . . . . . . . . . 1 . . . . . . . Operators 4 | . . . . . 1 . . . . 2 . . . . 1 . . Sabotage 1 | . . . . . . . . . 1 . . . . . . . . Search 1 | . . . 1 . . . . . . . . . . . . . . Fabricators 1 | . . . . . 1 . . . . . . . . . . . . Haulers 1 | . . . . . 1 . . . . . . . . . . . . Repair Stations . | . . . . . . . . . . . . . . . . . . Recycling Units 2 | . . . 2 . . . . . . . . . . . . . . Tunnel 2 | . . . 2 . . . . . . . . . . . . . . Scanalyzers 1 | . . . . . . . . . . 1 . . . . . . . Researchers 1 | . . . . . . . . . . 1 . . . . . . . Garrison Access . | . . . . . . . . . . . . . . . . . . Data Cores Recovered 1 | . . . . . . 1 . . . . . . . . . . . Used . | . . . . . . . . . . . . . . . . . . Hacking Detections 17 | . 1 . 2 . 2 3 . . . 7 . . . . 2 . . Full Trace Events 5 | . . . . . 1 2 . . . 1 . . . . 1 . . Feedback Events . | . . . . . . . . . . . . . . . . . . Feedback Blocked . | . . . . . . . . . . . . . . . . . . Robot Schematics Acquired . | . . . . . . . . . . . . . . . . . . Robots Built . | . . . . . . . . . . . . . . . . . . Authchips . | . . . . . . . . . . . . . . . . . . Time . | . . . . . . . . . . . . . . . . . . Total Robot Build Rating . | . . . . . . . . . . . . . . . . . . Part Schematics Acquired 20 | . . . . . . . . . . 20 . . . . . . . Parts Built 1 | . . . . . . . . . . 1 . . . . . . . Authchips . | . . . . . . . . . . . . . . . . . . Time 306 | . . . . . . . . . . 102 . . . . 204 . . Total Part Build Rating 8 | . . . . . . . . . . 8 . . . . . . . Parts Repaired . | . . . . . . . . . . . . . . . . . . Time . | . . . . . . . . . . . . . . . . . . Parts Recycled . | . . . . . . . . . . . . . . . . . . Recycled Matter . | . . . . . . . . . . . . . . . . . . Retrieved Matter . | . . . . . . . . . . . . . . . . . . Retrieved Components 3 | . . . 3 . . . . . . . . . . . . . . Parts Scanalyzed 20 | . . . . . . . . . . 20 . . . . . . . Part Schematics Acquired 20 | . . . . . . . . . . 20 . . . . . . . Parts Damaged 4 | . . . . . . . . . . 4 . . . . . . . Bothacking | -11 -10 -10 -9 -9 -6 -6 -6 -6 -6 -5 -5 -5 -5 -4 -4 -4 -4 ------------ Run | Yrd Mat Sub Rec Scr Fac Ext Cet Arc Hub Fac Upp Upp War Pro Fac Was Fac Used RIF Installer . | . . . . . . . . . . . . . . . . . . Robots Hacked . | . . . . . . . . . . . . . . . . . . Non-combat . | . . . . . . . . . . . . . . . . . . Combat . | . . . . . . . . . . . . . . . . . . Robot Hacks Applied . | . . . . . . . . . . . . . . . . . . Relay Couplers Released . | . . . . . . . . . . . . . . . . . . Fabnet Peak Effective % . | . . . . . . . . . . . . . . . . . . Robots Rewired 4 | . . . . . . 4 . . . . . . . . . . . Allies Hacked . | . . . . . . . . . . . . . . . . . . Hacks Repelled . | . . . . . . . . . . . . . . . . . . Allies | -11 -10 -10 -9 -9 -6 -6 -6 -6 -6 -5 -5 -5 -5 -4 -4 -4 -4 -------- Run | Yrd Mat Sub Rec Scr Fac Ext Cet Arc Hub Fac Upp Upp War Pro Fac Was Fac Total Allies 16 | . . . . 5 . 11 . . . . . . . . . . . Largest Group 8 | . . . . 5 . 8 5 . . . . . . . . . . Highest-Rated Group 331 | . . . . 235 . 331 255 . . . . . . . . . . Highest-Rated Ally 159 | . . . . 47 . 159 159 . . . . . . . . . . Total Orders . | . . . . . . . . . . . . . . . . . . Ally Attacks 179 | . . . . 82 . 75 22 . . . . . . . . . . Total Damage 3718 | . . . . 1338 . 1768 612 . . . . . . . . . . Kills 32 | . . . . 15 . 14 3 . . . . . . . . . . Allies Corrupted . | . . . . . . . . . . . . . . . . . . Allies Melted 9 | . . . . 6 . 1 1 . . . . . 1 . . . . Intel | -11 -10 -10 -9 -9 -6 -6 -6 -6 -6 -5 -5 -5 -5 -4 -4 -4 -4 ------- Run | Yrd Mat Sub Rec Scr Fac Ext Cet Arc Hub Fac Upp Upp War Pro Fac Was Fac Active Infowar (turns) 11369 | . . 2099 575 1604 190 536 225 436 255 450 1029 1096 1010 1250 614 . . Optics 1551 | . . . . . 190 536 225 436 164 . . . . . . . . Sensors 3976 | . . . . . . . . . . 44 1029 1096 390 1242 175 . . Structural 9655 | . . 2099 575 1604 . . . . . 406 1001 1096 1010 1250 614 . . Jamming 360 | . . . . . . . . 179 181 . . . . . . . . Robot Analysis Total . | . . . . . . . . . . . . . . . . . . Derelict Logs Recovered 11 | . . 2 . 5 . . . . . . 2 1 . 1 . . . Drone Launches . | . . . . . . . . . . . . . . . . . . Drone Recoveries . | . . . . . . . . . . . . . . . . . . Exploration | -11 -10 -10 -9 -9 -6 -6 -6 -6 -6 -5 -5 -5 -5 -4 -4 -4 -4 ------------- Run | Yrd Mat Sub Rec Scr Fac Ext Cet Arc Hub Fac Upp Upp War Pro Fac Was Fac Turns Passed 16252 | 4 449 2214 575 4124 207 536 225 436 531 1417 1029 1096 1010 1250 878 106 165 Spaces Moved 8550 | 1 286 832 406 2881 202 387 109 146 98 519 600 627 441 496 351 136 32 Core 217 | 1 180 . . 15 . . . . . . . . . . 18 2 1 Treads 3766 | . 106 551 . . . . . 120 98 519 600 627 441 496 208 . . Legs 29 | . . . . . . . . . . . . . . . 29 . . Wheels 4373 | . . 281 406 2866 202 387 109 26 . . . . . . 96 . . Hover 165 | . . . . . . . . . . . . . . . . 134 31 Flight . | . . . . . . . . . . . . . . . . . . Fastest Speed 50 | 50 50 130 130 70 70 70 80 80 160 167 167 167 166 166 50 50 51 Average Speed 156 | 50 99 242 130 125 70 79 80 145 221 224 167 167 186 238 196 59 56 Slowest Speed 1350 | 50 160 320 130 1350 70 80 80 160 246 250 167 167 247 245 245 60 150 Overloaded Moves . | . . . . . . . . . . . . . . . . . . Propulsion Burnouts . | . . . . . . . . . . . . . . . . . . Robots Hopped . | . . . . . . . . . . . . . . . . . . Potential Cave-ins 13 | . . . . . . . . . . . . . . . 7 6 . Cave-ins Triggered 1 | . . . . . . . . . . . . . 1 . . . . Exploration Rate (%) 49 | 2 60 36 73 91 9 60 53 88 12 17 78 74 74 59 10 88 1 Regions Visited 17 Branch Regions 11 Pre-discovered Areas 4 | . . . 2 2 . . . . . . . . . . . . . Known Exits Taken 6 | . . 1 . . 1 . . . 1 1 1 . . 1 . . . Unknown Exits Taken 9 | 1 1 . 1 1 . 1 1 1 . . . 1 1 . . . . Scrap Searched 25 | . . 6 . 10 . . . . . . 4 2 . 3 . . . Spaces Dug 67 | . 9 1 2 4 10 5 . . 2 5 7 2 . . 9 11 . Terrain Destroyed 792 | . 58 34 9 13 11 18 12 11 42 229 7 2 137 89 109 11 . Melee 4 | . . . . 4 . . . . . . . . . . . . . Projectile 192 | . . 1 9 9 11 18 12 11 42 29 7 2 3 13 14 11 . AOE 596 | . 58 33 . . . . . . . 200 . . 134 76 95 . . Terrain Rammed . | . . . . . . . . . . . . . . . . . . Walls Destroyed . | . . . . . . . . . . . . . . . . . . Machines Disabled . | . . . . . . . . . . . . . . . . . . Actions | -11 -10 -10 -9 -9 -6 -6 -6 -6 -6 -5 -5 -5 -5 -4 -4 -4 -4 --------- Run | Yrd Mat Sub Rec Scr Fac Ext Cet Arc Hub Fac Upp Upp War Pro Fac Was Fac Total 10675 | 5 422 937 432 3353 253 586 228 302 289 682 620 664 580 532 481 148 161 Wait 904 | . 98 3 1 299 3 75 66 83 68 33 9 17 28 . 8 . 113 Move 8534 | . 285 831 405 2880 201 386 108 145 97 518 599 626 440 495 351 135 32 Hop . | . . . . . . . . . . . . . . . . . . Pick Up 182 | . 4 19 5 51 9 7 9 10 6 21 2 3 22 . 12 . 2 Fast Attach 50 | . 8 . . 13 1 1 2 1 5 2 . . 6 . 9 1 1 Attach 85 | 1 3 8 . 10 8 2 2 5 10 9 1 1 11 . 12 1 1 Detach 22 | . 3 . . 10 1 . . . 1 3 . . 2 . 2 . . Swap 80 | . . 10 . 7 . 3 . 2 11 10 1 1 8 13 13 . 1 Drop 126 | 4 . 2 1 41 1 3 10 5 6 10 1 3 21 . 18 . . Fire 595 | . 21 64 20 24 29 63 31 46 79 68 7 13 42 24 53 11 . Melee 34 | . . . . 18 . . . 5 . . . . . . . . 11 Ram . | . . . . . . . . . . . . . . . . . . Kick . | . . . . . . . . . . . . . . . . . . Crush 16 | . . . . . . . . . 6 8 . . . . 2 . . Escape Stasis . | . . . . . . . . . . . . . . . . . . Rewire 46 | . . . . . . 46 . . . . . . . . . . . Trap 1 | . . . . . . . . . . . . . . . 1 . . Miscellaneous . | . . . . . . . . . . . . . . . . . . Route ------- -11/Scrapyard -10/Materials (discovered 5 exits: [*Mat x2] / [*Min x2] / *Sub) -10/Subcaves (discovered 2 exits: [*Mat] / *Rec) -9/Recycling (discovered 2 exits: [*Fac] / *Scr) -9/Scraptown (discovered 2 exits: *Fac x2) -6/Factory (discovered 8 exits: Fac x4 / Low x2 / *Ext x2) -6/Extension (discovered 2 exits: *Fac / [*Cet]) -6/Cetus -6/Archives (discovered 3 exits: *Fac / *Hub x2) -6/Hub_04(d) -5/Factory (discovered 6 exits: Fac x4 / *Upp x2) -5/Upper Caves (discovered 2 exits: *Upp / *War) -5/Upper Caves (discovered 2 exits: *Fac / *War) -5/Warlord -4/Proximity Caves -4/Factory -4/Waste -4/Factory History --------- Turn | Location | Event 1 | -11/Scrapyard | Released all parts (6) 5 | -11/Scrapyard | Discovered new exit (range 0) 5 | -11/Scrapyard | Entered Materials 16 | -10/Materials | Discovered new exit (range 10) 149 | -10/Materials | Discovered new exit (range 11) 164 | -10/Materials | Discovered new exit (range 13) 302 | -10/Materials | Build established: Mutant 320 | -10/Materials | Discovered new exit (range 15) 423 | -10/Materials | Discovered new exit (range 4) 454 | -10/Materials | Entered Subcaves 614 | -10/Subcaves | Identified exit to Recycling 753 | -10/Subcaves | Discovered new exit (range 8) 794 | -10/Subcaves | Lost 4 parts (1p1n2w) 1289 | -10/Subcaves | Shifting Twisted Machinery released Sub. Laser 1305 | -10/Subcaves | Shifting Twisted Machinery released Humpback 1364 | -10/Subcaves | A swath of the cavern ceiling suddenly collapsed 1814 | -10/Subcaves | Visited 4L-MR0's lab 1844 | -10/Subcaves | Found Powered Cannon 2363 | -10/Subcaves | Learned 2 Materials zone layouts 2540 | -10/Subcaves | Disturbed a concealed Subdweller 2668 | -10/Subcaves | Entered Recycling 2815 | -9/Recycling | Discovered new exit (range 13) 3193 | -9/Recycling | Core integrity fell below 50% 3214 | -9/Recycling | Scanned before Scraplab entrance 3228 | -9/Recycling | Discovered new exit (range 11) 3232 | -9/Recycling | Entered Scraplab 3243 | -9/Recycling | Entered Scraptown 3428 | -9/Scraptown | Discovered new exit (range 13) 3490 | -9/Scraptown | Scanned Subdweller tech in exchange for log data 3496 | -9/Scraptown | Learned Factory garrison access intel 3497 | -9/Scraptown | Learned Research stockpile data 3498 | -9/Scraptown | Learned 8 Factory zone layouts 3559 | -9/Scraptown | Visited Cyclists 3614 | -9/Scraptown | Visited UFD Registry 3614 | -9/Scraptown | Registered with UFD as "Chaintube" 3624 | -9/Scraptown | Visited Bundlers 3812 | -9/Scraptown | Visited Shadow of the Wyrm 3825 | -9/Scraptown | Visited Junk Repository 3890 | -9/Scraptown | Visited Chapter 10 3931 | -9/Scraptown | Visited Scrapoid Pod Storage 3957 | -9/Scraptown | Visited Science Guys 3986 | -9/Scraptown | Visited Junk Repository 4017 | -9/Scraptown | Visited Infowarlord's Domain 4044 | -9/Scraptown | Visited DA-N13 Charitable Foundation 4056 | -9/Scraptown | Found DCF Scrap (27 items) 4079 | -9/Scraptown | Visited Science Testing Area 4233 | -9/Scraptown | Visited Curators Association 4260 | -9/Scraptown | Visited Scrapoid Research Area 4542 | -9/Scraptown | Entered Cyclist Reading Room 5423 | -9/Scraptown | Found Scrapoid Pod 5718 | -9/Scraptown | Scrapoid Pod released 09S06-D (x5) 5858 | -9/Scraptown | Visited A0-MCA Data Center 5966 | -9/Scraptown | Found Exp. Terrain Scan Processor 6209 | -9/Scraptown | Met Optimus 6209 | -9/Scraptown | Accepted into 0bPrime 6502 | -9/Scraptown | Civil war broke out across Scraptown 6510 | -9/Scraptown | Found Field Manipulator 6611 | -9/Scraptown | Lost 5 allies 6615 | -9/Scraptown | Found Prototype Processor 6655 | -9/Scraptown | Optimus destroyed in the chaos of civil war 6681 | -9/Scraptown | Lost 4 allies 6682 | -9/Scraptown | Found Scrap Suit 6759 | -9/Scraptown | Lost 3 allies 6878 | -9/Scraptown | Lost 6 allies 6969 | -9/Scraptown | Found Damper Plating 6976 | -9/Scraptown | Found Surveybot 24 Chip 6989 | -9/Scraptown | Found PL-3XN's Ring of Power 7001 | -9/Scraptown | Found Prototype Wheel 7035 | -9/Scraptown | Identified Expert System 7082 | -9/Scraptown | Attached Powered Cannon, gained temporary slot: Power 7116 | -9/Scraptown | Lost 4 allies 7150 | -9/Scraptown | Found Scrap Suit 7163 | -9/Scraptown | Build established: Scavenger-Mutant 7185 | -9/Scraptown | Lost 3 allies 7358 | -9/Scraptown | Discovered new exit (range 9) 7367 | -9/Scraptown | Entered Factory 7367 | -6/Factory | Evolved 8 slots: Propulsion x2, Utility x6 7368 | -6/Factory | Identified exit to Lower Caves 7368 | -6/Factory | Identified Ballwheel 7369 | -6/Factory | Identified exit to Factory 7370 | -6/Factory | Loaded intel: 4 garrison access locations 7379 | -6/Factory | Lost 5 allies 7498 | -6/Factory | Identified exit to Extension 7574 | -6/Factory | Entered Extension 7672 | -6/Extension | Rescued a captive Derelict 7672 | -6/Extension | Rescued a captive Derelict 7687 | -6/Extension | Rescued a captive Derelict 7701 | -6/Extension | Rescued a captive Derelict 7702 | -6/Extension | Rescued a captive Derelict 7741 | -6/Extension | Rescued a captive Derelict 7842 | -6/Extension | Rescued A7 7879 | -6/Extension | Spotted B-75 Beast 7905 | -6/Extension | Destroyed B-75 Beast 7916 | -6/Extension | Spotted B-75 Beast 7922 | -6/Extension | Allies destroyed B-75 Beast 8043 | -6/Extension | Discovered new exit (range 22) 8044 | -6/Extension | Discovered exit to Factory (range 21) 8110 | -6/Extension | Entered Cetus 8110 | -6/Cetus | Accompanied by 5 allies (A7) 8115 | -6/Cetus | Acquired a Cetus Manufacturing Module code from A7 8118 | -6/Cetus | Spotted Cetus Guard 8119 | -6/Cetus | Spotted Cetus Guard 8121 | -6/Cetus | Spotted Cetus Guard 8124 | -6/Cetus | Spotted Cetus Guard 8125 | -6/Cetus | Destroyed Cetus Guard 8134 | -6/Cetus | Allies destroyed Cetus Guard 8150 | -6/Cetus | Allies destroyed Cetus Guard 8159 | -6/Cetus | Destroyed Cetus Guard 8183 | -6/Cetus | Lost 3 allies 8250 | -6/Cetus | Murdered A7 8252 | -6/Cetus | Extracted ID and sensor layout for unrecognized location from A7's data core 8318 | -6/Cetus | Discovered new exit (range 22) 8335 | -6/Cetus | Entered Archives 8535 | -6/Archives | Discovered new exit (range 22) 8558 | -6/Archives | Unable to access archive contents 8566 | -6/Archives | Discovered exit to Factory (range 18) 8574 | -6/Archives | Discovered new exit (range 14) 8771 | -6/Archives | Entered Hub_04(d) 8859 | -6/Hub_04(d) | Discovered exit to Factory (range 14) 8871 | -6/Hub_04(d) | Garrison activated, responded to threat 8937 | -6/Hub_04(d) | Lost 3 parts (1n1u1w) 8957 | -6/Hub_04(d) | Destroyed 8 combat bots 9063 | -6/Hub_04(d) | Network Hub disabled 9266 | -6/Hub_04(d) | Lost 4 parts (1p3u) 9294 | -6/Hub_04(d) | System corruption reached 10% 9302 | -6/Hub_04(d) | Entered Factory 9302 | -5/Factory | Evolved 2 slots: Power x1, Propulsion x1 9412 | -5/Factory | Found Powered Armor 9778 | -5/Factory | Destroyed 7 combat bots 9897 | -5/Factory | Identified exit to Upper Caves 10245 | -5/Factory | Lost 3 parts (1n1u1w) 10253 | -5/Factory | Destroyed 8 combat bots 10293 | -5/Factory | Identified exit to Factory 10357 | -5/Factory | Cargo convoy interrupted 10441 | -5/Factory | Fabricated Centrium Heavy Treads (x1) 10719 | -5/Factory | Entered Upper Caves 10720 | -5/Upper Caves | Encountered a Warlord checkpoint 10892 | -5/Upper Caves | Identified exit to Upper Caves 10894 | -5/Upper Caves | Learned Factory terminal intel 11134 | -5/Upper Caves | A Derelict revealed a hidden shortcut to "reach the base" 11748 | -5/Upper Caves | Entered another Upper Caves area 11823 | -5/Upper Caves | Encountered a Warlord checkpoint 12029 | -5/Upper Caves | Discovered exit to Factory (range 3) 12182 | -5/Upper Caves | Learned Factory stockpile data 12473 | -5/Upper Caves | Discovered new exit (range 15) 12761 | -5/Upper Caves | Attacked by a delusional Derelict stockpiling parts 12844 | -5/Upper Caves | Entered Warlord 13075 | -5/Warlord | Visited the Vortex Lab 13085 | -5/Warlord | Warlord's base attacked by MAIN.C 13095 | -5/Warlord | Found Prototype Energy Gun 13098 | -5/Warlord | Found Prototype Energy Gun 13219 | -5/Warlord | Found Prototype Device 13219 | -5/Warlord | Identified Exp. Focal Shield 13227 | -5/Warlord | Found Prototype Processor 13227 | -5/Warlord | Identified Exp. Targeting Computer 13235 | -5/Warlord | Found Prototype Reactor 13310 | -5/Warlord | Found Prototype Special Weapon 13310 | -5/Warlord | Identified RU-N14's Throwing Claymores v3 13316 | -5/Warlord | Found RU-N14's Throwing Claymores v3 13320 | -5/Warlord | Found RU-N14's Throwing Claymores v3 13324 | -5/Warlord | Found RU-N14's Throwing Claymores v3 13328 | -5/Warlord | Found RU-N14's Throwing Claymores v3 13332 | -5/Warlord | Found RU-N14's Throwing Claymores v3 13409 | -5/Warlord | Rebuked by Warlord 13435 | -5/Warlord | Warlord forces counterattacked 13554 | -5/Warlord | Lost 3 allies 13566 | -5/Warlord | Spotted Striker 13568 | -5/Warlord | Spotted Striker 13583 | -5/Warlord | Destroyed Striker 13611 | -5/Warlord | Lost 10 allies 13613 | -5/Warlord | Spotted Executioner 13615 | -5/Warlord | Destroyed 8 combat bots 13627 | -5/Warlord | Spotted Striker 13653 | -5/Warlord | Spotted Striker 13658 | -5/Warlord | Spotted Executioner 13665 | -5/Warlord | Spotted Executioner 13665 | -5/Warlord | Destroyed Executioner 13667 | -5/Warlord | Destroyed Executioner 13688 | -5/Warlord | Destroyed 20 combat bots 13708 | -5/Warlord | Spotted Executioner 13714 | -5/Warlord | Destroyed 11 combat bots 13721 | -5/Warlord | Lost 6 allies 13730 | -5/Warlord | Destroyed Executioner 13760 | -5/Warlord | Warlord base infiltrated, sounded retreat 13775 | -5/Warlord | Found Prototype Device 13775 | -5/Warlord | Identified Adv. Kinecellerator 13791 | -5/Warlord | Crushed by falling debris 13799 | -5/Warlord | Discovered new exit (range 15) 13846 | -5/Warlord | Spotted Striker 13851 | -5/Warlord | Spotted Executioner 13854 | -5/Warlord | Entered Proximity Caves 13868 | -4/Proximity Caves | Identified Vortex Rifle (x2) 14742 | -4/Proximity Caves | Discovered exit to Factory (range 9) 15104 | -4/Proximity Caves | Entered Factory 15104 | -4/Factory | Evolved 2 slots: Propulsion x1, Utility x1 15105 | -4/Factory | Identified exit to Armory 15107 | -4/Factory | Loaded intel: 26 terminal locations 15284 | -4/Factory | Spotted B-86 Titan 15304 | -4/Factory | Destroyed B-86 Titan 15387 | -4/Factory | Found Powered Armor 15863 | -4/Factory | Identified Vortex Chain Reactor 15937 | -4/Factory | Spotted Striker 15938 | -4/Factory | Cargo convoy interrupted 15973 | -4/Factory | Core integrity fell below 50% 15982 | -4/Factory | Manually triggered Chute Trap 15982 | -4/Factory | Sucked down chute 15982 | -4/Factory | Entered Waste 15983 | -4/Waste | Core integrity fell below 20% 15997 | -4/Waste | EMP discharged 15998 | -4/Waste | Spotted C-40 Crusher 16003 | -4/Waste | Spotted C-40 Crusher 16005 | -4/Waste | Spotted C-40 Crusher 16007 | -4/Waste | Lost 11 parts (6n3u2w) 16056 | -4/Waste | Spotted C-40 Crusher 16056 | -4/Waste | Spotted C-40 Crusher 16068 | -4/Waste | Spotted C-40 Crusher 16081 | -4/Waste | Discovered new exit (range 12) 16088 | -4/Waste | Entered Factory 16194 | -4/Factory | Build established: Mutant 16253 | -4/Factory | Destroyed by S-27 Virus with Autogun Last Messages --------------- 16075_ B57L09F28QRR3IWCVM2NCY,&T,9J1W<=ZQP<#B 16081_ EXIT=FOUND 16087_ ALERT: Foreign system detected. Charging EMP. LOCATION=UNKNOWN GOAL=ESCAPE 16092_ Acquired Prototype Slashing Weapon. 16092_ Identified Vibroblade. 16094_ Acquired Vibroblade. 16106_ System corrupted: Energy discharge (-14). 16137_ System corrupted: Energy discharge (-11). 16155_ System corrupted: Matter fused (-3). 16221_ #F7IQ7ISND=P>HHECCR29 VT,BIP#P%VHJC/Z 16224_ ALERT: All DSF locations entering lockdown mode. 16226_ S-27 Virus destroyed. 16234_ Antigrav Array destroyed. 16239_ Vibroblade follow-up attack on S-27 Virus. 16247_ S-27 Virus destroyed. 16247_ Cld. Antigrav System destroyed. 16249_ Acquired 20 matter. 16251_ Vibroblade follow-up attack on S-27 Virus. Map ----- +----------------------------------------------------+ | ?????????????????????????????????????????????????? | | ?????????????????????????????????????????????????? | | ?????????????????????????????????????????????????? | | ?????????????????????????????????????????????????? | | ?????????????????????????????????????????????????? | | ?????????????????????????????????????????????????? | | ?????????????????????????????????????????????????? | | ?????????????????????????????????????????????????? | | ?????????????? ?????????????????????????????????? | | ??????????# ?? ?????????????????????????????????? | | ?????????# ?????????????????????????????????? | | ?????????# ?????????????????????????????????? | | ?????????? ?????????????????????????????????? | | ?????????? " ?????????????????????????????????? | | ?????????? ?????????????????????????????????? | | ??????????? ?????????????????????????????????? | | ??????????? ?????????????????????????????????? | | ???????????# #?????????????????????????????????? | | ???????????# #?????????????????????????????????? | | ???????????# #?????????????????????????????????? | | ???????????# #???????##########????????????????? | | ???????????# #?####### #????????????????? | | ???????????# #?# # /// #????????????????? | | ????######## ### #* // #????????????????? | | #* / #????????????????? | | [+%@ #????????????????? | | "" [#s=s""" #????????????????? | | G # """ #????????????????? | | ?" """ # """ #????????????????? | | ????"" ############### #????????????????? | | ????"" ??????????????##########????????????????? | | ????"" ?????????????????????????????????????????? | | ???? ??????????????????????????????????????????? | | ???? ???????????????????????????????????????????? | | ??? ????????????????????????????????????????????? | | ?????????????????????????????????????????????????? | | ?????????????????????????????????????????????????? | | ?????????????????????????????????????????????????? | | ?????????????????????????????????????????????????? | | ?????????????????????????????????????????????????? | | ?????????????????????????????????????????????????? | | ?????????????????????????????????????????????????? | | ?????????????????????????????????????????????????? | | ?????????????????????????????????????????????????? | | ?????????????????????????????????????????????????? | | ?????????????????????????????????????????????????? | | ?????????????????????????????????????????????????? | | ?????????????????????????????????????????????????? | | | | | +----------------------------------------------------+ Best States ------------- Heat Dissipation 64 Coolant Potential 65 Energy Generation 55 Energy Capacity 700 Matter Stores 300 Matter Capacity 300 Sight Range 22 Robot Scan Range 16 Terrain Scan Density 3010 Jamming Range 12 Armor Coverage 3200 Resistance: KI 30 Resistance: EM 90 Projectile Deflection 75 Weapon Cycling 25 Evasion (%) 54 Targeting Accuracy 12 Target Analysis 6 Core Analysis 6 Armor Integrity Analysis 30 Recoil Reduction 5 Kinecelleration 50 Offensive Hacking 33 Item Schematics ----------------- Centrium Heavy Treads | -5/Factory | Scanalyzed Adv. Hacking Suite | -5/Factory | Scanalyzed CPS Tube | -5/Factory | Scanalyzed Adv. KE Penetrator | -5/Factory | Scanalyzed Prc. Rocket Launcher | -5/Factory | Scanalyzed Adv. Sensor Array | -5/Factory | Scanalyzed Graphene Brace | -5/Factory | Scanalyzed Adv. Datajack | -5/Factory | Scanalyzed System Restoration Module | -5/Factory | Scanalyzed Imp. Transmission Jammer | -5/Factory | Scanalyzed Imp. Target Analyzer | -5/Factory | Scanalyzed Adv. Variable Charge Gun | -5/Factory | Scanalyzed Powered Armor | -5/Factory | Scanalyzed Structural Scanner | -5/Factory | Scanalyzed Imp. Sensor Array | -5/Factory | Scanalyzed Katana | -5/Factory | Scanalyzed KE Penetrator | -5/Factory | Scanalyzed Imp. Hacking Suite | -5/Factory | Scanalyzed Gauss Rifle | -5/Factory | Scanalyzed Rnf. Deuterium Engine | -5/Factory | Scanalyzed Robot Schematics ------------------ None Fabricated ------------ Centrium Heavy Treads | x1 | -5/Factory Repaired ---------- Nothing Alien Tech Used ----------------- None Achievements -------------- None Challenges ------------ None Game ------ Seed EnhancedChainBiocell Manual? 0 Play Time 02:54:59 Cumulative 538.7 hours Start 2025.06.13 @ 03:47:50 End 2025.06.13 @ 07:19:37 Sessions 1 Manual Loads 0 Difficulty Rogue Special Mode None Game No. 637 Rogue 637 Adventurer 0 Explorer 0 Win Type - Total 19 Types 13/0/5/1/0/0/0/0/0/0 Lore% 83 Gallery% 83 Achievement% 82 Wizard Run 0 Options --------- Layout 0 ASCII 0 Keyboard 0 Movement Numpad Keybinds 0 Fullscreen 1 Font 18/SmallcapsGlow Map View 76x50 Zoom Use 0% Tactical HUD 1 Map Filters NONE Filters NONE Steam 1 RUN: 361e1c73-bb2c-4ea0-9498-04b642899efd